bitfinex/quotes_SOLUSD_20240530
["timestamp","ask_amount","ask_price","bid_price","bid_amount"]
[1717073230532,2.2058,167.74,167.71,60.0]
[1717073230728,0.08221609,167.84,167.75,95.96]
[1717073230903,2.2053,167.78,167.73,62.2058]
[1717073231407,2.2053,167.78,167.75,60.0]
[1717073231830,2.2054,167.77,167.73,116.1758]
[1717073232143,2.2053,167.78,167.75,60.0]
[1717073232304,2.2054,167.77,167.75,60.0]
[1717073232610,15.6232739,167.87,167.73,113.97]
[1717073232809,2.2055,167.76,167.73,60.0]
[1717073233107,2.2057,167.75,167.71,2.206]
[1717073233312,15.6232739,167.87,167.69,66.5261]
[1717073233507,15.6232739,167.87,167.71,60.0]
[1717073233704,10.799842,167.87,167.77,60.0]
[1717073233910,2.2051,167.79,167.75,95.96]
[1717073235222,0.8158164,167.9,167.77,60.0]
[1717073235913,5.50079784,167.9,167.8,60.0]
[1717073236224,5.50079784,167.9,167.77,56.1753]
[1717073236225,0.8158164,167.9,167.78,60.0]
[1717073236730,0.8158164,167.9,167.77,35.96]
[1717073236904,0.8158164,167.9,167.76,60.0]
[1717073237105,0.8158164,167.9,167.74,62.2057]
[1717073237427,45.8158164,167.9,167.74,62.2057]
[1717073238204,45.8158164,167.9,167.76,113.97]
[1717073238205,0.8158164,167.9,167.76,113.97]
[1717073238434,0.8158164,167.9,167.78,62.2051]
[1717073238614,0.8158164,167.9,167.78,60.0]
[1717073238925,2.2048,167.82,167.78,60.0]
[1717073239129,2.2048,167.81,167.78,60.0]
[1717073239502,2.205,167.8,167.76,113.97]
[1717073240108,2.205,167.8,167.78,60.0]
[1717073240528,2.2048,167.81,167.78,60.0]
[1717073241430,0.8158164,167.9,167.8,60.0]
[1717073241814,2.2047,167.82,167.8,60.0]
[1717073242009,2.2047,167.82,167.78,60.0]
[1717073242215,0.8158164,167.9,167.78,113.97]
[1717073242809,0.8158164,167.9,167.78,95.96]
[1717073243225,5.69869803,167.9,167.78,95.96]
[1717073243733,5.69869803,167.9,167.78,60.0]
[1717073244110,5.69869803,167.9,167.76,60.0]
[1717073244610,5.69869803,167.9,167.75,38.1656]
[1717073244611,5.69869803,167.9,167.78,60.0]
[1717073244817,5.69869803,167.9,167.76,60.0]
[1717073245733,2.2051,167.8,167.78,60.0]
[1717073245924,2.2049,167.81,167.78,60.0]
[1717073246109,2.2051,167.79,167.76,60.0]
[1717073247316,19.77483466,167.89,167.67,60.0]
[1717073247513,2.2064,167.69,167.65,95.96]
[1717073247712,18.96198501,167.86,167.63,62.2072]
[1717073248016,2.2065,167.69,167.63,62.2072]
[1717073248415,2.2065,167.69,167.65,60.0]
[1717073248718,2.2063,167.7,167.67,60.0]
[1717073248919,1.76483466,167.83,167.67,60.0]
[1717073249114,17.19715035,167.84,167.67,60.0]
[1717073249115,18.96198501,167.84,167.67,60.0]
[1717073249320,45.0,167.83,167.67,60.0]
[1717073249625,17.19715035,167.82,167.67,60.0]
[1717073249824,17.19715035,167.82,167.72,60.0]
[1717073250017,2.2059,167.73,167.72,60.0]
[1717073250339,2.206,167.73,167.7,95.96]
[1717073250940,23.893648,167.85,167.68,18.01]
[1717073250941,2.2061,167.72,167.68,95.96]
[1717073251745,2.2059,167.73,167.7,60.0]
[1717073252035,2.2058,167.74,167.7,95.96]
[1717073253033,17.20463881,167.84,167.72,95.96]
[1717073253238,2.2049,167.81,167.72,60.0]
[1717073253412,23.893648,167.85,167.72,60.0]
[1717073253413,2.2057,167.75,167.72,60.0]
[1717073254022,2.2057,167.75,167.72,120.3858]
[1717073254628,2.2055,167.76,167.72,120.3858]
[1717073254835,2.2056,167.75,167.72,120.3858]
[1717073255032,2.2055,167.76,167.72,120.3858]
[1717073255233,2.2055,167.76,167.74,60.0]
[1717073255535,2.2056,167.75,167.74,60.0]
[1717073255744,47.30011415,167.88,167.74,60.0]
[1717073255923,2.2054,167.77,167.74,60.0]
[1717073256123,2.2055,167.76,167.74,60.0]
[1717073256724,2.2055,167.76,167.74,66.3219]
[1717073257115,2.2054,167.77,167.74,66.3219]
[1717073257315,2.2055,167.76,167.74,66.3219]
[1717073257929,2.2054,167.77,167.74,66.3219]
[1717073258123,30.1003523,167.88,167.74,66.3219]
[1717073258328,2.2055,167.76,167.74,66.3219]
[1717073258527,2.2055,167.76,167.74,60.0]
[1717073260019,2.2056,167.75,167.74,60.0]
[1717073260542,17.19972279,167.87,167.72,69.8538]
[1717073260543,2.2054,167.77,167.76,60.0]
[1717073260923,65.09309462,167.88,167.76,60.0]
[1717073261131,2.2052,167.78,167.76,60.0]
[1717073261332,2.2054,167.77,167.76,60.0]
[1717073263445,18.96453801,167.87,167.71,6.207]
[1717073263660,2.2059,167.73,167.71,6.207]
[1717073263838,2.2059,167.73,167.7,6.207]
[1717073264142,2.2061,167.72,167.7,6.207]
[1717073264450,6.20589969,167.84,167.67,95.96]
[1717073264752,2.2064,167.7,167.67,95.96]
[1717073264929,2.2064,167.7,167.69,60.0]
[1717073265130,2.2064,167.7,167.67,42.2113]
[1717073265444,2.2063,167.71,167.68,60.0]
[1717073265622,2.2063,167.7,167.68,60.0]
[1717073267344,2.2065,167.69,167.66,95.96]
[1717073267735,7.97073435,167.84,167.64,60.0]
[1717073267941,7.97073435,167.84,167.63,42.1283]
[1717073267942,45.0,167.83,167.63,42.1283]
[1717073268149,2.2067,167.67,167.63,42.1283]
[1717073269361,1.76483466,167.79,167.63,6.1683]
[1717073269549,2.207,167.65,167.6,80.2176]
[1717073269749,2.2071,167.64,167.6,60.0]
[1717073270056,2.2076,167.61,167.58,60.0]
[1717073270558,2.2074,167.62,167.58,60.0]
[1717073270756,1.76483466,167.77,167.58,60.0]
[1717073271053,64.77483466,167.77,167.56,60.0]
[1717073271238,46.76483466,167.77,167.56,60.0]
[1717073271648,17.20873179,167.76,167.56,60.0]
[1717073271855,46.76483466,167.75,167.56,60.0]
[1717073272945,46.76483466,167.75,167.56,62.2081]
[1717073273344,46.76483466,167.75,167.56,116.1781]
[1717073273551,46.76483466,167.75,167.56,113.97]
[1717073274572,6.20095037,167.74,167.56,113.97]
[1717073274864,2.2076,167.61,167.58,60.0]
[1717073275055,6.20095037,167.74,167.58,60.0]
[1717073275259,2.2076,167.6,167.58,60.0]
[1717073275583,2.2073,167.62,167.58,60.0]
[1717073275957,34.99274232,167.73,167.62,60.0]
[1717073276466,34.99274232,167.73,167.6,78.01]
[1717073276672,6.20095037,167.74,167.6,78.01]
[1717073276967,6.20095037,167.74,167.58,42.1556]
[1717073276968,6.20095037,167.74,167.58,95.96]
[1717073277150,2.2074,167.62,167.6,60.0]
[1717073277965,2.2075,167.61,167.6,60.0]
[1717073278165,2.2075,167.61,167.58,113.97]
[1717073278349,2.2075,167.61,167.6,60.0]
[1717073278544,2.2075,167.61,167.58,120.44]
[1717073278771,2.2074,167.62,167.58,120.44]
[1717073279856,6.20095037,167.74,167.58,104.6377]
[1717073280076,2.2075,167.61,167.58,102.43]
[1717073280275,6.20095037,167.74,167.58,102.43]
[1717073280803,6.20095037,167.74,167.61,60.0]
[1717073281174,2.2072,167.64,167.61,60.0]
[1717073281578,11.11839052,167.74,167.61,78.01]
[1717073281579,2.2072,167.63,167.61,78.01]
[1717073281771,11.11839052,167.74,167.61,78.01]
[1717073281772,2.2071,167.64,167.61,78.01]
[1717073282299,2.2071,167.64,167.61,113.97]
[1717073282587,4.91744015,167.74,167.61,113.97]
[1717073282588,2.2069,167.66,167.63,60.0]
[1717073282794,2.2069,167.66,167.65,60.0]
[1717073283000,2.2069,167.66,167.63,78.01]
[1717073283203,2.2069,167.65,167.63,78.01]
[1717073283497,2.2068,167.66,167.63,78.01]
[1717073283978,2.2068,167.66,167.63,60.0]
[1717073285459,2.2067,167.67,167.63,60.0]
[1717073286388,2.2066,167.68,167.65,60.0]
[1717073286705,23.902847,167.79,167.65,78.01]
[1717073286706,34.99274232,167.79,167.65,78.01]
[1717073286870,2.2067,167.67,167.63,120.3511]
[1717073287266,2.2068,167.66,167.63,102.3411]
[1717073287484,2.2067,167.67,167.65,60.0]
[1717073287688,39.72725749,167.79,167.63,6.1428]
[1717073287888,2.2068,167.66,167.62,60.0]
[1717073288191,2.2068,167.66,167.62,66.1428]
[1717073288493,2.2067,167.67,167.62,122.3201]
[1717073288989,2.2067,167.67,167.63,2.2072]
[1717073289166,2.2067,167.67,167.62,122.3201]
[1717073290180,2.2067,167.67,167.62,104.3101]
[1717073290574,2.2068,167.66,167.62,95.96]
[1717073290791,2.2068,167.66,167.62,102.267]
[1717073291092,39.72725749,167.79,167.62,102.267]
[1717073291093,39.72725749,167.79,167.66,60.0]
[1717073291472,39.72725749,167.79,167.66,62.2067]
[1717073291798,2.2068,167.67,167.64,35.96]
[1717073292173,2.2068,167.67,167.63,60.0]
[1717073292488,2.2068,167.67,167.63,68.5422]
[1717073292697,2.2068,167.67,167.63,66.335]
[1717073292995,2.2066,167.68,167.63,68.5422]
[1717073293195,39.72725749,167.79,167.66,113.97]
[1717073293396,39.72725749,167.79,167.66,60.0]
[1717073293604,2.2065,167.69,167.66,60.0]
[1717073293896,2.2065,167.68,167.64,120.3606]
[1717073294672,39.72725749,167.79,167.64,122.5676]
[1717073295396,6.23588849,167.8,167.66,62.2068]
[1717073295802,6.23588849,167.8,167.66,98.1668]
[1717073296097,6.23588849,167.8,167.66,113.97]
[1717073296307,6.23588849,167.8,167.68,60.0]
[1717073296686,34.99274232,167.81,167.68,60.0]
[1717073297596,30.13227008,167.82,167.7,60.0]
[1717073297793,23.897408,167.82,167.7,60.0]
[1717073297994,2.2059,167.73,167.68,116.1765]
[1717073298184,2.2059,167.73,167.68,113.97]
[1717073298383,2.2061,167.72,167.68,60.0]
[1717073299278,2.2061,167.72,167.68,113.97]
[1717073299502,2.2061,167.72,167.7,60.0]
[1717073299891,2.2061,167.72,167.68,113.97]
[1717073301310,39.71211785,167.83,167.7,60.0]
[1717073301311,2.2059,167.73,167.7,60.0]
[1717073301596,2.2059,167.73,167.7,78.01]
[1717073301902,2.206,167.72,167.7,78.01]
[1717073302197,2.206,167.72,167.68,120.0298]
[1717073302404,2.206,167.73,167.7,60.0]
[1717073302785,2.206,167.72,167.7,60.0]
[1717073303700,2.2059,167.73,167.7,60.0]
[1717073304085,2.2059,167.73,167.72,60.0]
[1717073304600,2.2059,167.73,167.7,53.97]
[1717073304811,2.206,167.72,167.71,60.0]
[1717073305413,2.2058,167.74,167.71,60.0]
[1717073305603,2.2057,167.75,167.73,60.0]
[1717073306189,33.71053971,167.85,167.73,113.97]
[1717073306398,2.2052,167.78,167.75,60.0]
[1717073306615,2.2053,167.78,167.75,60.0]
[1717073306819,2.2053,167.78,167.76,0.79853163]
[1717073307018,2.2051,167.79,167.76,0.79853163]
[1717073307199,23.892768,167.86,167.76,0.79853163]
[1717073307516,2.2053,167.78,167.76,0.79853163]
[1717073307816,2.2047,167.82,167.81,60.0]
[1717073307994,9.0447,167.82,167.81,60.0]
[1717073308320,23.892768,167.86,167.78,60.0]
[1717073308321,2.2049,167.81,167.78,60.0]
[1717073308995,2.2049,167.81,167.76,18.01]
[1717073308996,2.2049,167.81,167.76,113.97]
[1717073309195,23.892768,167.86,167.76,113.97]
[1717073309196,2.2046,167.83,167.78,60.0]
[1717073309408,2.2047,167.82,167.78,78.01]
[1717073310113,2.2047,167.82,167.78,60.0]
[1717073310327,23.892768,167.86,167.78,78.01]
[1717073310493,2.2047,167.82,167.78,78.01]
[1717073310691,2.2046,167.83,167.8,60.0]
[1717073310931,2.2046,167.83,167.78,113.97]
[1717073311139,2.2047,167.82,167.78,113.97]
[1717073311493,2.2047,167.82,167.8,95.96]
[1717073311796,2.2047,167.82,167.8,113.97]
[1717073311997,23.892768,167.86,167.82,113.97]
[1717073312204,26.096968,167.86,167.82,113.97]
[1717073312396,2.2043,167.85,167.82,113.97]
[1717073313701,2.2042,167.86,167.82,113.97]
[1717073314092,2.2042,167.86,167.82,60.0]
[1717073314717,0.8158164,167.9,167.78,60.0]
[1717073314902,2.205,167.8,167.77,6.464]
[1717073315101,2.2047,167.82,167.77,6.464]
[1717073315309,2.2051,167.79,167.76,448.7]
[1717073315515,0.8158164,167.9,167.79,60.0]
[1717073315724,2.2045,167.84,167.81,60.0]
[1717073316026,2.2045,167.84,167.79,60.0]
[1717073316244,0.8158164,167.9,167.79,113.97]
[1717073316406,2.2045,167.84,167.79,113.97]
[1717073316799,2.2043,167.85,167.83,60.0]
[1717073317097,2.2042,167.86,167.83,60.0]
[1717073317300,2.2041,167.87,167.85,60.0]
[1717073318204,2.2039,167.88,167.85,60.0]
[1717073318605,2.2055,167.77,167.74,35.96]
[1717073318830,2.2054,167.77,167.73,60.0]
[1717073319708,2.2057,167.74,167.73,60.0]
[1717073320015,2.388853,167.87,167.69,6.3301]
[1717073320016,2.206,167.72,167.69,66.3301]
[1717073320220,2.206,167.73,167.69,66.3301]
[1717073320619,2.2058,167.74,167.69,84.3401]
[1717073320827,2.2058,167.74,167.69,86.5465]
[1717073321231,2.2057,167.75,167.71,60.0]
[1717073321544,2.388853,167.87,167.77,60.0]
[1717073321826,2.388853,167.87,167.75,78.01]
[1717073322245,2.2054,167.77,167.75,60.0]
[1717073322620,2.2052,167.78,167.75,60.0]
[1717073322827,2.2054,167.77,167.74,53.97]
[1717073323007,2.2054,167.77,167.73,60.0]
[1717073323615,2.2053,167.78,167.75,60.0]
[1717073324033,2.2054,167.77,167.73,113.97]
[1717073324420,2.2052,167.78,167.73,113.97]
[1717073324624,2.2054,167.77,167.73,113.97]
[1717073324825,2.2053,167.78,167.75,60.0]
[1717073325535,2.388853,167.87,167.75,60.0]
[1717073325925,2.2052,167.78,167.75,60.0]
[1717073326726,2.2054,167.77,167.75,60.0]
[1717073326925,2.2053,167.78,167.75,60.0]
[1717073327559,2.2052,167.78,167.75,60.0]
[1717073328457,2.388853,167.87,167.75,60.0]
[1717073328824,2.2053,167.78,167.75,60.0]
[1717073329025,2.2053,167.78,167.75,78.01]
[1717073331652,2.388853,167.87,167.78,60.0]
[1717073331958,2.205,167.8,167.78,60.0]
[1717073334243,2.388853,167.87,167.76,60.0]
[1717073334743,2.205,167.8,167.76,60.0]
[1717073335252,2.2051,167.79,167.76,60.0]
[1717073335632,2.205,167.8,167.76,60.0]
[1717073335833,2.205,167.8,167.76,62.2055]
[1717073336033,2.2049,167.81,167.76,62.2055]
[1717073336237,2.2049,167.81,167.76,116.1755]
[1717073336636,7.15447776,167.87,167.8,60.0]
[1717073336851,0.8158164,167.9,167.78,113.97]
[1717073337071,2.2046,167.83,167.8,60.0]
[1717073337435,2.2045,167.84,167.8,60.0]
[1717073337635,2.2046,167.83,167.8,113.97]
[1717073337935,7.154478,167.89,167.8,113.97]
[1717073338135,2.2046,167.83,167.8,113.97]
[1717073340662,2.2048,167.82,167.78,53.97]
[1717073340842,2.2045,167.84,167.81,60.0]
[1717073341039,7.9702944,167.9,167.83,60.0]
[1717073341237,0.8158164,167.9,167.8,2.2049]
[1717073341463,0.8158164,167.9,167.75,395.3167]
[1717073341464,2.2056,167.76,167.73,78.01]
[1717073341667,23.879217,167.89,167.73,78.01]
[1717073341844,2.2055,167.76,167.73,78.01]
[1717073342272,2.2056,167.76,167.72,60.0]
[1717073342563,2.2053,167.78,167.74,78.01]
[1717073342749,2.2054,167.77,167.74,78.01]
[1717073343144,2.2055,167.76,167.72,60.0]
[1717073343346,2.2055,167.76,167.74,60.0]
[1717073343961,2.2054,167.77,167.74,78.01]
[1717073344354,2.2053,167.78,167.74,78.01]
[1717073344661,2.2054,167.77,167.74,113.97]
[1717073345243,2.2054,167.77,167.74,95.96]
[1717073345442,2.2052,167.78,167.74,95.96]
[1717073345669,17.20016056,167.88,167.78,60.0]
[1717073345851,0.8158164,167.9,167.8,60.0]
[1717073346048,0.8158164,167.9,167.81,35.96]
[1717073346300,2.2045,167.84,167.81,35.96]
[1717073346453,2.2046,167.83,167.8,113.97]
[1717073346956,0.8158164,167.9,167.85,60.0]
[1717073347165,2.2041,167.87,167.85,60.0]
[1717073347478,2.204,167.88,167.85,78.01]
[1717073347651,2.2038,167.89,167.85,78.01]
[1717073347962,2.2039,167.88,167.85,78.01]
[1717073348646,2.2038,167.89,167.85,78.01]
[1717073348849,2.2038,167.89,167.87,60.0]
[1717073349242,2.2038,167.89,167.87,78.01]
[1717073349448,3.0195164,167.9,167.89,60.0]
[1717073349775,0.8158164,167.9,167.89,60.0]
[1717073350374,0.8158164,167.9,167.79,113.97]
[1717073350686,0.8158164,167.9,167.87,60.0]
[1717073351065,0.8158164,167.9,167.89,60.0]
[1717073351258,0.8158164,167.9,167.89,95.96]
[1717073351459,0.8158164,167.9,167.89,113.97]
[1717073351655,0.8158164,167.9,167.89,116.1738]
[1717073352371,0.8158164,167.9,167.89,139.0831]
[1717073353963,0.8158164,167.9,167.89,136.8793]
[1717073354162,0.8158164,167.9,167.89,139.0831]
[1717073354888,0.8158164,167.9,167.89,136.8793]
[1717073355083,0.8158164,167.9,167.89,139.0831]
[1717073356593,0.8158164,167.9,167.89,136.8793]
[1717073356769,0.8158164,167.9,167.89,139.0831]
[1717073357582,0.8158164,167.9,167.89,122.819]
[1717073357790,0.8158164,167.9,167.89,116.1738]
[1717073357992,0.8158164,167.9,167.87,60.0]
[1717073358290,0.8158164,167.9,167.76,64.8653737]
[1717073358490,0.8158164,167.9,167.76,60.0]
[1717073358698,0.8158164,167.9,167.79,60.0]
[1717073359681,0.8158164,167.9,167.81,60.0]
[1717073359893,2.2047,167.83,167.81,60.0]
[1717073360063,2.2047,167.83,167.79,113.97]
[1717073360889,2.2047,167.83,167.58,3.05436667]
[1717073360890,0.8158164,167.9,167.83,80.2144]
[1717073361090,2.2041,167.87,167.83,113.97]
[1717073362064,0.8158164,167.9,167.85,53.97]
[1717073362297,0.8158164,167.9,167.86,78.01]
[1717073362472,0.8158164,167.9,167.86,60.0]
[1717073362672,0.8158164,167.9,167.84,78.01]
[1717073363091,0.8158164,167.9,167.84,60.0]
[1717073364104,0.8158164,167.9,167.82,60.0]
[1717073365130,0.8158164,167.9,167.84,60.0]
[1717073365412,0.8158164,167.9,167.82,98.1647]
[1717073365615,0.8158164,167.9,167.82,95.96]
[1717073365785,2.2042,167.86,167.82,95.96]
[1717073366606,2.2042,167.86,167.84,60.0]
[1717073366780,0.8158164,167.9,167.84,113.97]
[1717073366980,0.8158164,167.9,167.89,60.0]
[1717073367185,0.8158164,167.9,167.87,78.01]
[1717073367985,3.0194164,167.9,167.87,60.0]
[1717073369321,2.2038,167.89,167.87,60.0]
[1717073369528,0.8158164,167.9,167.87,60.0]
[1717073370010,0.8158164,167.9,167.89,60.0]
[1717073371714,0.8158164,167.9,167.89,138.0411]
[1717073376201,0.8158164,167.9,167.89,116.1738]
[1717073376405,0.8158164,167.9,167.89,122.497]
[1717073377109,0.8158164,167.9,167.89,116.1738]
[1717073377312,0.8158164,167.9,167.89,95.96]
[1717073377494,0.8158164,167.9,167.89,113.97]
[1717073377691,0.8158164,167.9,167.89,98.1638]
[1717073377895,0.8158164,167.9,167.89,95.96]
[1717073378120,0.8158164,167.9,167.89,98.1638]
[1717073378430,0.8158164,167.9,167.89,116.1738]
[1717073379305,0.8158164,167.9,167.89,113.97]
[1717073379495,0.8158164,167.9,167.89,95.96]
[1717073379697,0.8158164,167.9,167.89,113.97]
[1717073379916,0.8158164,167.9,167.89,95.96]
[1717073380122,0.8158164,167.9,167.87,60.0]
[1717073380930,0.8158164,167.9,167.89,60.0]
[1717073381511,3.0194164,167.9,167.87,95.96]
[1717073381910,0.8158164,167.9,167.87,95.96]
[1717073382249,2.2039,167.89,167.87,60.0]
[1717073382524,0.8158164,167.9,167.87,60.0]
[1717073382736,2.2038,167.89,167.87,60.0]
[1717073382929,2.2038,167.89,167.85,60.0]
[1717073383420,0.8158164,167.9,167.82,388.7]
[1717073383861,2.204,167.88,167.85,60.0]
[1717073384141,2.204,167.87,167.85,60.0]
[1717073384458,2.204,167.87,167.83,95.96]
[1717073384639,0.8158164,167.9,167.83,60.0]
[1717073385537,0.8158164,167.9,167.81,113.97]
[1717073385722,2.2041,167.87,167.82,2.2047]
[1717073385923,2.2041,167.87,167.83,60.0]
[1717073386141,2.2039,167.88,167.83,80.2145]
[1717073386323,2.2041,167.87,167.85,60.0]
[1717073387137,2.2042,167.86,167.83,113.97]
[1717073388254,0.8158164,167.9,167.73,60.0]
[1717073388424,2.2051,167.79,167.75,60.0]
[1717073388755,0.8158164,167.9,167.75,95.96]
[1717073389044,2.205,167.8,167.75,95.96]
[1717073389257,2.2052,167.79,167.77,60.0]
[1717073389427,5.48136142,167.9,167.75,35.96]
[1717073389428,0.8158164,167.9,167.79,60.0]
[1717073389924,2.205,167.8,167.79,60.0]
[1717073390848,2.205,167.8,167.77,60.0]
[1717073391046,2.2051,167.79,167.77,60.0]
[1717073391436,2.205,167.81,167.77,60.0]
[1717073391635,0.8158164,167.9,167.79,60.0]
[1717073391831,2.2047,167.82,167.79,60.0]
[1717073392035,0.8158164,167.9,167.8,1.19082227]
[1717073392036,2.2048,167.81,167.8,1.19082227]
[1717073392229,2.2048,167.81,167.79,60.0]
[1717073393124,0.8158164,167.9,167.77,113.97]
[1717073393634,2.2051,167.8,167.79,60.0]
[1717073395532,2.2051,167.79,167.77,113.97]
[1717073395851,2.205,167.8,167.77,113.97]
[1717073396650,2.205,167.8,167.79,60.0]
[1717073397036,0.8158164,167.9,167.8,53.97]
[1717073397226,0.8158164,167.9,167.81,53.97]
[1717073397427,0.8158164,167.9,167.8,60.0]
[1717073397651,0.8158164,167.9,167.78,60.0]
[1717073397832,2.2052,167.79,167.78,60.0]
[1717073398734,2.2052,167.79,167.75,113.97]
[1717073399451,2.2052,167.79,167.78,60.0]
[1717073399625,2.205,167.8,167.78,60.0]
[1717073400057,2.2051,167.79,167.78,60.0]
[1717073401453,2.2053,167.78,167.75,35.96]
[1717073402329,2.2053,167.78,167.73,2.2059]
[1717073402548,2.58065106,167.9,167.73,8.6707]
[1717073402549,2.2054,167.77,167.73,8.6707]
[1717073403130,2.2055,167.76,167.73,6.4648]
[1717073403641,2.2055,167.76,167.72,80.216]
[1717073403949,2.2054,167.77,167.72,80.216]
[1717073404348,2.2055,167.76,167.72,80.216]
[1717073404654,2.2056,167.75,167.72,60.0]
[1717073404854,2.2057,167.75,167.7,80.2162]
[1717073405062,2.58065106,167.9,167.7,60.0]
[1717073405239,2.2058,167.74,167.7,62.2062]
[1717073405563,2.2057,167.75,167.72,60.0]
[1717073405769,1.76483466,167.88,167.72,60.0]
[1717073406065,45.0,167.88,167.72,60.0]
[1717073406261,2.2057,167.75,167.72,60.0]
[1717073406438,2.2055,167.76,167.74,60.0]
[1717073406638,6.19476326,167.89,167.67,393.1132]
[1717073406639,2.2056,167.75,167.72,60.0]
[1717073407046,2.2056,167.75,167.72,78.01]
[1717073407956,2.2054,167.77,167.74,60.0]
[1717073408553,2.2054,167.77,167.74,78.01]
[1717073408747,32.42833711,167.87,167.69,4.4128]
[1717073408748,32.42833711,167.87,167.7,60.0]
[1717073408944,2.2059,167.73,167.7,60.0]
[1717073409144,2.206,167.72,167.7,60.0]
[1717073410149,2.2061,167.71,167.68,60.0]
[1717073410446,2.206,167.72,167.68,60.0]
[1717073410639,2.206,167.72,167.7,60.0]
[1717073411056,2.2059,167.73,167.7,60.0]
[1717073412257,2.2054,167.77,167.74,60.0]
[1717073412465,2.2055,167.77,167.74,60.0]
[1717073412635,32.42833711,167.87,167.74,60.0]
[1717073412839,2.2056,167.75,167.72,60.0]
[1717073413040,2.2056,167.75,167.74,60.0]
[1717073413338,32.42833711,167.87,167.74,113.97]
[1717073413539,6.19476326,167.89,167.78,60.0]
[1717073413741,2.2049,167.81,167.78,60.0]
[1717073413967,2.205,167.8,167.78,60.0]
[1717073414556,0.8158164,167.9,167.8,60.0]
[1717073414757,2.2048,167.81,167.8,60.0]
[1717073415364,2.2047,167.82,167.8,60.0]
[1717073415666,2.204,167.87,167.8,60.0]
[1717073415872,0.8158164,167.9,167.8,60.0]
[1717073416263,0.8158164,167.9,167.78,18.01]
[1717073416576,0.8158164,167.9,167.75,18.01]
[1717073416788,2.58065106,167.9,167.72,62.206]
[1717073417079,0.8158164,167.9,167.74,388.7]
[1717073417259,2.58065106,167.9,167.74,388.7]
[1717073417445,2.58065106,167.9,167.74,448.7]
[1717073417644,0.8158164,167.9,167.74,448.7]
[1717073417846,2.58065106,167.9,167.74,388.7]
[1717073419389,2.58065106,167.9,167.74,448.7]
[1717073419681,2.2054,167.77,167.74,448.7]
[1717073419851,2.2054,167.77,167.72,62.206]
[1717073420052,2.2054,167.77,167.72,80.216]
[1717073420276,2.2054,167.77,167.72,116.176]
[1717073421074,2.2054,167.77,167.74,60.0]
[1717073423955,2.58065106,167.9,167.7,62.2062]
[1717073423956,2.2056,167.75,167.7,62.2062]
[1717073424277,2.2056,167.75,167.7,104.7959]
[1717073424569,2.2055,167.76,167.72,60.0]
[1717073424772,7.38661253,167.9,167.72,60.0]
[1717073424773,2.2056,167.75,167.72,60.0]
[1717073425154,2.2056,167.75,167.7,104.7959]
[1717073425561,7.38661253,167.9,167.72,60.0]
[1717073425562,2.2055,167.76,167.72,60.0]
[1717073425763,2.2056,167.75,167.72,60.0]
[1717073425971,2.2056,167.75,167.7,122.8059]
[1717073426459,2.2056,167.75,167.71,2.2061]